bitfinex-derivatives/quotes_ETHF0:USTF0_20240928
["timestamp","ask_amount","ask_price","bid_price","bid_amount"]
[1727509114733,2.44315058,2684.2,2684.1,0.37243]
[1727509115443,2.81557058,2684.2,2684.1,0.37243]
[1727509115636,5.47883,2684.3,2683.8,1.84339053]
[1727509115937,1.95446576,2683.9,2683.8,1.23947]
[1727509118745,2.8155322,2684.0,2683.9,0.37246]
[1727509118941,2.4430822,2684.0,2683.7,3.58027]
[1727509119141,0.37247,2683.8,2683.7,3.2078]
[1727509119445,0.37247,2683.8,2683.7,3.58028]
[1727509119645,0.75757,2683.8,2683.7,3.58028]
[1727509120042,0.75757,2683.8,2683.7,3.2078]
[1727509120243,2.09757,2683.8,2683.7,3.2078]
[1727509120543,4.5406522,2683.8,2683.7,3.2078]
[1727509123153,2.09757,2683.8,2683.7,3.2078]
[1727509124361,0.37248,2683.7,2683.6,0.37249]
[1727509124656,3.08697208,2683.7,2683.6,0.37249]
[1727509125658,2.71449208,2683.7,2683.6,0.37249]
[1727509125853,3.08697208,2683.7,2683.6,0.37249]
[1727509126651,2.71449208,2683.7,2683.6,0.37249]
[1727509141568,1.95349208,2683.8,2683.7,0.37248]
[1727509141968,2.32596208,2683.8,2683.7,0.37248]
[1727509142377,3.66596208,2683.8,2683.7,0.37248]
[1727509142580,3.29349208,2683.8,2683.7,0.37248]
[1727509142972,3.29349208,2683.8,2683.6,4.91331873]
[1727509143281,2.72369208,2683.7,2683.6,0.3725]
[1727509143673,3.11189208,2683.7,2683.6,0.3725]
[1727509145177,4.45189208,2683.7,2683.6,0.3725]
[1727509146072,4.06369208,2683.7,2683.6,0.3725]
[1727509146868,3.68629208,2683.7,2683.6,0.3725]
[1727509147777,2.34629208,2683.7,2683.6,0.3725]
[1727509150686,1.95349208,2683.7,2683.6,0.3725]
[1727509153289,3.66598208,2683.7,2683.5,0.7411]
[1727509153490,0.4084,2683.6,2683.5,0.7411]
[1727509153881,0.4084,2683.6,2683.5,4.82672046]
[1727509157484,0.8102,2683.6,2683.5,0.7411]
[1727509160887,1.7464,2683.7,2683.6,0.3725]
[1727509163288,0.4064,2683.7,2683.6,0.3725]
[1727509165497,1.7097,2683.8,2683.6,0.3725]
[1727509165698,2.118,2683.8,2683.6,0.3725]
[1727509167599,2.49047,2683.8,2683.6,0.37249]
[1727509170993,2.49047,2683.8,2683.5,1.3442637]
[1727509170994,2.49048,2683.8,2683.5,0.7411]
[1727509171199,2.49048,2683.8,2683.5,1.7167637]
[1727509171200,2.44561082,2683.6,2683.5,1.7167637]
[1727509171409,2.44561082,2683.6,2683.5,0.7411]
[1727509171598,2.44561082,2683.6,2683.5,5.62065947]
[1727509171903,2.44561082,2683.6,2683.5,9.34705947]
[1727509172097,2.44561082,2683.6,2683.5,8.37139577]
[1727509172693,2.44561082,2683.6,2683.5,7.99889577]
[1727509173405,2.44561082,2683.6,2683.5,8.97455947]
[1727509174905,2.44561082,2683.6,2683.5,7.99889577]
[1727509175105,2.44561082,2683.6,2683.5,4.27249577]
[1727509175305,2.44561082,2683.6,2683.5,5.24815947]
[1727509181007,2.83151082,2683.6,2683.5,5.24815947]
[1727509182209,0.3859,2683.6,2683.5,4.27249577]
[1727509182409,2.83163349,2683.6,2683.5,4.27249577]
[1727509183202,2.83156177,2683.6,2683.5,4.27249577]
[1727509183402,2.8315456,2683.6,2683.5,4.27249577]
[1727509183609,0.778,2683.8,2683.5,4.64500577]
[1727509183807,2.44568029,2683.6,2683.5,5.62066947]
[1727509186613,2.44568029,2683.6,2683.5,5.24815947]
[1727509186810,2.44568029,2683.6,2683.5,5.62066947]
[1727509188606,2.44568029,2683.6,2683.5,5.24815947]
[1727509189212,2.44568029,2683.6,2683.5,5.62066947]
[1727509191007,2.44568029,2683.6,2683.5,5.24815947]
[1727509191411,2.81818029,2683.6,2683.5,5.24815947]
[1727509191718,2.44568029,2683.6,2683.5,5.24815947]
[1727509192507,2.44568029,2683.6,2683.5,1.3442637]
[1727509199811,0.4003,2683.7,2683.5,0.3686]
[1727509200214,2.44588151,2683.6,2683.5,1.3442637]
[1727509200716,2.44588151,2683.6,2683.5,5.22784699]
[1727509200918,2.44588151,2683.6,2683.5,4.25218329]
[1727509201214,0.37249,2683.7,2683.5,4.25218329]
[1727509201419,2.4458781,2683.6,2683.5,4.25218329]
[1727509201617,2.4458781,2683.6,2683.5,3.88358329]
[1727509201819,2.4458781,2683.6,2683.5,0.379]
[1727509202316,2.4458781,2683.6,2683.5,1.7271737]
[1727509202519,2.4458781,2683.6,2683.5,1.3546637]
[1727509203020,1.95647993,2683.6,2683.5,12.69775316]
[1727509203209,1.95647993,2683.8,2683.5,21.63944938]
[1727509203409,2.4458781,2683.9,2683.7,4.18313634]
[1727509203618,1.95563583,2683.8,2683.7,4.55561634]
[1727509203816,1.95563583,2683.8,2683.7,5.73988486]
[1727509204011,1.95563583,2683.8,2683.7,13.63575487]
[1727509204315,1.95563583,2683.8,2683.7,12.45148635]
[1727509206520,1.95563583,2683.9,2683.8,0.37247]
[1727509206820,1.95563583,2683.9,2683.8,4.59430235]
[1727509208817,1.95563583,2683.9,2683.8,4.22183235]
[1727509209723,1.95563583,2683.9,2683.8,4.59430235]
[1727509214023,1.95563583,2683.9,2683.8,4.22183235]
[1727509214225,1.95563583,2683.9,2683.8,4.59430235]
[1727509214421,1.95563583,2683.9,2683.8,4.97890235]
[1727509217836,1.95563583,2683.9,2683.8,5.38690235]
[1727509218035,1.95563583,2684.0,2683.8,5.38690235]
[1727509218738,1.95563583,2684.0,2683.8,5.01443235]
[1727509218929,1.95563583,2684.0,2683.8,5.38689235]
[1727509221235,1.95563583,2684.0,2683.9,0.37246]
[1727509221640,1.95563583,2684.0,2683.9,4.49385689]
[1727509222925,2.32493583,2684.1,2683.9,4.49385689]
[1727509223744,2.32493583,2684.1,2683.9,5.35985689]
[1727509225340,1.95563583,2684.1,2683.9,5.35985689]
[1727509225644,1.95563583,2684.1,2684.0,0.4012]
[1727509227745,1.95563583,2684.1,2684.0,5.06490474]
[1727509227943,1.95563583,2684.1,2684.0,4.69246474]
[1727509228740,1.95563583,2684.1,2684.0,5.06490474]
[1727509229044,1.95563583,2684.1,2684.0,4.69246474]
[1727509229245,3.69193583,2684.2,2684.0,4.69246474]
[1727509229734,3.69193583,2684.2,2684.1,0.393]
[1727509231242,4.06435583,2684.2,2684.1,0.393]
[1727509231440,3.69193583,2684.2,2684.1,0.393]
[1727509245353,1.7363,2684.2,2684.1,0.393]
[1727509245554,3.68991084,2684.2,2684.1,0.393]
[1727509246250,1.7363,2684.2,2684.1,0.393]
[1727509246951,0.3963,2684.2,2684.1,4.43022795]
[1727509247256,2.34991527,2684.2,2684.1,4.43022795]
[1727509247554,0.3963,2684.2,2684.1,6.14265795]
[1727509247757,2.35022631,2684.2,2684.1,6.14265795]
[1727509248054,0.3963,2684.2,2684.1,6.51455795]
[1727509248551,2.35022631,2684.2,2684.1,6.51455795]
[1727509257858,1.95392631,2684.2,2684.1,6.51455795]
[1727509258060,1.95387975,2684.3,2684.2,0.37242]
[1727509262860,1.95387975,2684.3,2684.2,5.70876344]
[1727509263565,1.95387975,2684.3,2684.2,5.33634344]
[1727509263762,1.95387975,2684.3,2684.2,3.99634344]
[1727509264962,1.95387975,2684.3,2684.2,4.36876344]
[1727509265866,3.2165581,2684.5,2684.2,8.91656344]
[1727509265867,1.95387975,2684.4,2684.2,8.91656344]
[1727509266368,1.46543569,2684.3,2684.2,9.89189978]
[1727509266565,1.46532587,2684.3,2684.2,9.89189978]
[1727509266965,1.95387975,2684.4,2684.2,9.89189978]
[1727509267164,1.46531899,2684.3,2684.2,8.91656344]
[1727509267367,1.95387975,2684.4,2684.2,9.89189978]
[1727509267570,1.46533332,2684.3,2684.2,9.89189978]
[1727509267773,1.95387975,2684.4,2684.2,8.91656344]
[1727509267972,1.95387975,2684.4,2684.2,5.33634344]
[1727509268163,1.95387975,2684.4,2684.2,9.89192978]
[1727509268365,1.46533536,2684.3,2684.2,6.68412978]
[1727509268566,1.95387975,2684.4,2684.2,6.68412978]
[1727509268567,1.95387975,2684.4,2684.3,0.37244]
[1727509268877,1.95387975,2684.4,2684.3,3.98458177]
[1727509271074,2.8441781,2684.5,2684.3,3.98458177]
[1727509271374,0.3818,2684.4,2684.3,3.98458177]
[1727509271969,2.33563142,2684.4,2684.3,3.98458177]
[1727509272566,2.33563142,2684.4,2684.3,4.35702177]
[1727509274769,0.3818,2684.4,2684.3,4.35702177]
[1727509275273,0.3818,2684.4,2684.3,8.42882177]
[1727509275461,0.3818,2684.4,2684.3,8.05638177]
[1727509276365,0.3818,2684.4,2684.3,8.42882177]
[1727509277571,2.35213142,2684.5,2684.4,0.37242]
[1727509277772,2.35213142,2684.5,2684.3,8.42881177]
[1727509277975,2.35213142,2684.5,2684.4,0.3853]
[1727509281271,2.35213142,2684.5,2684.4,0.75772]
[1727509283581,2.35213142,2684.5,2684.4,0.3853]
[1727509283884,2.35213142,2684.5,2684.4,0.75772]
[1727509284376,2.35213142,2684.5,2684.4,6.14729812]
[1727509293288,0.3923,2684.6,2684.5,0.37241]
[1727509293785,0.7931,2684.6,2684.5,0.37241]
[1727509293984,2.74676592,2684.6,2684.5,0.37241]
[1727509295474,2.74676592,2684.6,2684.5,1.71241]
[1727509295680,1.95366592,2684.6,2684.5,12.56129066]
[1727509295992,1.46510298,2684.6,2684.5,9.811817]
[1727509296177,0.3906,2684.6,2684.5,9.69948066]
[1727509296382,1.168,2684.6,2684.5,9.69948066]
[1727509297478,1.168,2684.6,2684.5,8.35948066]
[1727509304595,1.168,2684.6,2684.5,5.15168066]
[1727509306492,1.168,2684.6,2684.5,6.49168066]
[1727509306797,0.7993,2684.6,2684.5,6.49168066]
[1727509307899,0.7993,2684.6,2684.5,11.191817]
[1727509307900,2.264442,2684.6,2684.5,11.191817]
[1727509308092,1.465142,2684.6,2684.5,12.37329509]
[1727509308495,1.465142,2684.6,2684.5,11.191817]
[1727509308798,1.465142,2684.6,2684.5,7.467017]
[1727509309692,1.465142,2684.6,2684.5,6.49168066]
[1727509309891,1.465142,2684.6,2684.5,7.467017]
[1727509310399,2.33456592,2684.7,2684.6,0.3724]
[1727509310699,2.33456592,2684.7,2684.6,4.28329158]
[1727509310892,4.1667781,2684.7,2684.6,4.28329158]
[1727509311088,4.1667781,2684.7,2684.5,0.863]
[1727509311290,0.7871,2684.6,2684.5,0.863]
[1727509312499,0.7871,2684.6,2684.4,1.62072]
[1727509312697,1.95374426,2684.5,2684.4,1.62072]
[1727509313097,1.95374426,2684.5,2684.4,5.85744959]
[1727509314206,2.35454426,2684.6,2684.5,0.37241]
[1727509314802,2.35454426,2684.6,2684.5,4.55943027]
[1727509318092,0.4008,2684.6,2684.5,4.55943027]
[1727509318599,0.4008,2684.6,2684.5,4.18702027]
[1727509318909,11.8726,2684.6,2683.9,3.2078]
[1727509319106,11.8726,2684.6,2683.7,0.97533634]
[1727509319107,0.3725,2683.9,2683.7,0.97533634]
[1727509319397,5.31922807,2683.8,2683.5,0.37255]
[1727509319597,1.95330509,2683.7,2683.6,0.37254]
[1727509319800,1.95330509,2683.7,2683.6,3.96448987]
[1727509319993,1.95330509,2683.7,2683.5,0.37254]
[1727509319994,1.95330509,2683.7,2683.5,4.33702987]
[1727509320202,3.60671807,2683.8,2683.5,0.37254]
[1727509320203,1.95330509,2683.6,2683.5,0.37254]
[1727509320396,1.95330509,2683.7,2683.5,0.37254]
[1727509320596,1.95326707,2683.7,2683.6,4.09300288]
[1727509320803,1.95326707,2683.7,2683.5,4.46554288]
[1727509321105,1.95326707,2683.7,2683.6,4.06627563]
[1727509321500,1.95326707,2683.7,2683.6,8.61407563]
[1727509321697,0.97600146,2683.7,2683.6,8.98661563]
[1727509321902,0.97600146,2683.7,2683.6,4.92034]
[1727509322096,1.46413799,2683.8,2683.6,4.92034]
[1727509322097,0.97600146,2683.8,2683.7,0.37252]
[1727509322303,1.46371551,2683.9,2683.8,0.37251]
[1727509322706,1.46371551,2683.9,2683.8,4.5062091]
[1727509324208,1.46314135,2683.9,2683.8,4.5062091]
[1727509327102,0.97487284,2684.0,2683.8,7.8592991]
[1727509327308,0.97487284,2684.0,2683.9,1.71249]
[1727509327505,1.46314135,2684.2,2683.9,1.7341]
[1727509327506,0.97487284,2684.1,2683.9,1.7341]
[1727509327709,0.97487284,2684.1,2684.0,0.37248]
[1727509328111,0.97487284,2684.1,2684.0,4.36013307]
[1727509328300,0.97487284,2684.1,2684.0,3.98765307]
[1727509328904,0.97487284,2684.1,2684.0,4.36013307]
[1727509329317,0.97487284,2684.1,2684.0,3.98765307]
[1727509330107,0.3725,2683.9,2683.5,2.57454]
[1727509330303,0.97476091,2683.7,2683.6,0.74464]
[1727509330503,0.97476091,2683.7,2683.6,4.76947666]
[1727509331814,0.97476091,2683.7,2683.6,6.10947666]
[1727509332112,1.73816091,2683.8,2683.6,6.10947666]
[1727509332306,0.97476091,2683.8,2683.7,0.37252]
[1727509332828,0.97476091,2683.8,2683.7,4.27033437]
[1727509333314,0.97425632,2683.9,2683.8,0.37251]
[1727509333617,0.97425632,2683.9,2683.8,1.71251]
[1727509334309,1.35015632,2684.0,2683.8,1.71251]
[1727509334711,1.35015632,2684.0,2683.9,0.3734]
[1727509334908,1.35015632,2684.0,2683.9,4.59406751]
[1727509335815,0.97425632,2684.0,2683.9,4.96655751]
[1727509336012,0.97397161,2684.0,2683.9,5.74295751]
[1727509336208,1.75487161,2684.1,2683.9,5.74295751]
[1727509336512,0.97397161,2684.0,2683.9,5.74295751]
[1727509337015,1.75487161,2684.1,2683.9,5.74295751]
[1727509337212,0.97397161,2684.0,2683.9,5.74295751]
[1727509337415,1.75487161,2684.1,2683.9,5.74295751]
[1727509337719,1.36407161,2684.1,2683.9,5.37046751]
[1727509337909,1.36407161,2684.1,2683.9,5.74295751]
[1727509338321,1.73654161,2684.1,2683.9,5.74295751]
[1727509338912,1.36407161,2684.1,2683.9,5.74295751]
[1727509340117,1.36407161,2684.1,2684.0,0.37248]
[1727509340518,0.3901,2684.1,2684.0,0.37248]
[1727509340823,1.36407161,2684.1,2683.9,7.08295751]
[1727509342916,0.3901,2684.1,2683.9,7.08295751]
[1727509343113,1.36407161,2684.1,2683.9,7.08295751]
[1727509347520,1.36407161,2684.1,2684.0,0.37248]
[1727509349826,0.97397161,2684.1,2684.0,0.37248]
[1727509350132,0.97397161,2684.2,2684.1,0.37247]
[1727509350319,0.97397161,2684.3,2684.2,0.37245]
[1727509350624,0.97397161,2684.3,2684.2,4.38815591]
[1727509351023,0.97397161,2684.3,2684.2,4.01570591]
[1727509351420,2.58457137,2684.4,2684.2,4.01570591]
[1727509351922,1.46214137,2684.3,2684.2,4.01570591]
[1727509352120,2.58457137,2684.4,2684.2,4.01570591]
[1727509352315,1.46214137,2684.3,2684.1,1.71246]
[1727509352523,1.35644734,2684.2,2684.1,1.71246]
[1727509353130,0.97454734,2684.2,2684.1,1.71246]
[1727509353830,0.97454734,2684.2,2684.1,5.88623019]
[1727509354331,0.97454734,2684.3,2684.2,0.37245]
[1727509354526,2.21214137,2684.4,2684.2,0.37245]
[1727509354735,2.21214137,2684.4,2684.3,1.34]
[1727509355628,0.75,2684.4,2684.3,1.34]
[1727509359324,0.75,2684.4,2684.3,1.71244]
[1727509360420,2.70326707,2684.4,2684.3,1.34]
[1727509360625,2.70326707,2684.4,2684.3,1.71244]
[1727509362034,3.07568707,2684.4,2684.3,1.34]
[1727509362529,2.70326707,2684.4,2684.3,1.34]
[1727509363635,2.70326707,2684.4,2684.3,1.71244]
[1727509364135,2.70326707,2684.4,2684.2,0.37244]
[1727509364434,1.95326707,2684.3,2684.2,0.37244]
[1727509371642,2.70326707,2684.4,2684.2,0.37244]
[1727509371940,2.70326707,2684.4,2684.3,0.37244]
[1727509373445,1.95326707,2684.4,2684.3,1.71244]
[1727509373639,1.95326707,2684.5,2684.4,0.37242]
[1727509373940,1.95326707,2684.6,2684.5,0.37241]
[1727509374242,1.95326707,2684.7,2684.6,0.3724]
[1727509374450,1.95326707,2684.7,2684.6,1.7124]
[1727509376643,2.70410169,2684.8,2684.7,0.37238]
[1727509376840,0.7527,2684.8,2684.7,0.37238]
[1727509377038,2.70412394,2684.8,2684.7,0.37238]
[1727509377449,0.7527,2684.8,2684.7,0.37238]
[1727509378835,0.7527,2684.8,2684.4,0.37242]
[1727509378836,13.6853,2684.8,2684.4,0.37242]
[1727509379047,1.95171945,2684.5,2684.4,0.37242]
[1727509379356,2.32412945,2684.5,2684.4,1.34]
[1727509379541,0.37241,2684.5,2684.4,1.34]
[1727509380048,1.12481,2684.5,2684.4,1.34]
[1727509380552,3.07685951,2684.5,2684.4,1.34]
[1727509380747,3.07686221,2684.5,2684.4,1.34]
[1727509380943,0.7524,2684.5,2684.4,1.34]
[1727509381145,2.70454545,2684.5,2684.4,1.34]
[1727509381347,2.70455928,2684.5,2684.4,1.34]
[1727509381547,0.7524,2684.5,2684.4,1.34]
[1727509382148,1.12481,2684.5,2684.2,1.71244]
[1727509382342,1.12481,2684.5,2684.3,0.37244]
[1727509382343,2.33148798,2684.4,2684.3,0.37244]
[1727509382543,2.33148798,2684.4,2684.3,4.05314821]
[1727509385845,0.75162,2684.4,2684.3,4.05314821]
[1727509386164,3.19126932,2684.4,2684.3,4.05314821]
[1727509386343,3.19126932,2684.4,2684.2,0.861]
[1727509386747,3.19126932,2684.4,2684.1,1.71246]
[1727509386748,0.37244,2684.3,2684.1,1.34]
[1727509386964,2.32530529,2684.2,2683.9,3.03609]
[1727509387260,1.46472403,2684.0,2683.9,3.03609]
[1727509387557,1.46472403,2684.0,2683.9,7.04152339]
[1727509388059,2.33266537,2684.1,2683.9,7.04152339]
[1727509388242,1.95296537,2684.0,2683.9,7.04152339]
[1727509388443,1.95296537,2684.0,2683.9,4.00543339]
[1727509388643,2.33176537,2684.0,2683.8,1.2925]
[1727509388847,0.3976,2683.9,2683.8,1.2925]
[1727509389450,2.33176537,2684.0,2683.8,1.2925]
[1727509389653,2.33176537,2684.0,2683.9,1.34]
[1727509392655,2.33176537,2684.0,2683.9,1.71249]
[1727509392861,2.33176537,2684.0,2683.9,1.34]
[1727509394353,2.33176537,2684.0,2683.9,1.7435]
[1727509395849,2.33176537,2684.0,2683.9,2.11599]
[1727509396760,2.33176537,2684.0,2683.9,1.7435]
[1727509397956,2.33176537,2684.0,2683.9,2.11599]
[1727509398761,2.33176537,2684.0,2683.9,1.7435]
[1727509399473,1.95296537,2684.1,2684.0,0.37248]
[1727509399660,1.95296537,2684.2,2684.1,0.37247]
[1727509399966,1.95296537,2684.2,2684.1,2.09037]
[1727509403484,1.95296537,2684.2,2684.1,1.7179]
[1727509405074,0.37245,2684.2,2684.0,1.7102]
[1727509405370,2.71335752,2684.1,2684.0,1.34]
[1727509407471,2.71335752,2684.1,2684.0,1.71248]
[1727509407662,2.71335752,2684.1,2684.0,1.34]
[1727509408875,2.71335752,2684.1,2684.0,1.71248]
[1727509410176,0.7614,2684.1,2684.0,1.71248]
[1727509415377,1.95195752,2684.2,2684.1,0.37247]
[1727509418278,1.95195752,2684.2,2684.0,1.71247]
[1727509418471,1.95195752,2684.2,2684.1,0.37247]
[1727509422190,2.83084932,2684.3,2684.1,0.37247]
[1727509424179,2.43964932,2684.2,2684.1,0.37247]
[1727509428889,2.43964932,2684.3,2684.2,0.37245]
[1727509429497,2.43964932,2684.3,2684.2,1.71245]
[1727509430095,3.9964,2684.4,2684.3,0.37244]
[1727509433490,0.77371,2684.5,2684.4,0.37242]
[1727509433491,2.4431789,2684.5,2684.4,0.37242]
[1727509433692,2.4431789,2684.6,2684.5,0.37241]
[1727509434083,2.8155689,2684.7,2684.5,0.37241]
[1727509434286,2.4431789,2684.6,2684.5,0.37241]
[1727509434591,2.4431789,2684.6,2684.5,1.34]
[1727509439200,2.8155689,2684.7,2684.5,1.34]
[1727509439385,2.4431789,2684.6,2684.5,1.34]
[1727509440096,2.4431789,2684.7,2684.5,1.71241]
[1727509440493,2.4431789,2684.7,2684.5,1.34]
[1727509440701,2.4431789,2684.7,2684.5,1.71241]
[1727509443298,2.8155689,2684.7,2684.5,1.34]
[1727509443501,0.3815,2684.6,2684.5,1.34]
[1727509444305,2.8246789,2684.6,2684.5,1.34]
[1727509444501,0.3815,2684.6,2684.5,1.34]
[1727509445000,0.3815,2684.6,2684.5,1.71241]
[1727509445599,2.4431789,2684.7,2684.5,1.71241]
[1727509445898,1.95232396,2684.6,2684.5,1.71241]
[1727509446692,1.95232396,2684.6,2684.5,1.34]
[1727509447100,2.8155689,2684.7,2684.5,1.34]
[1727509447304,1.95212416,2684.6,2684.5,1.34]
[1727509447601,1.95206545,2684.6,2684.5,1.34]
[1727509448999,2.32446545,2684.6,2684.5,1.34]
[1727509449203,0.3724,2684.6,2684.5,1.34]
[1727509449795,0.3724,2684.6,2684.3,1.71244]
[1727509449996,1.46397522,2684.4,2684.3,1.71244]
[1727509450198,2.74096696,2684.5,2684.3,1.71244]
[1727509450394,2.74096696,2684.5,2684.4,0.37242]
[1727509450797,2.74096696,2684.5,2684.3,1.71243]
[1727509450991,3.11338696,2684.5,2684.3,1.34]
[1727509451195,2.34726696,2684.4,2684.3,1.34]
[1727509453997,2.34750182,2684.4,2684.3,1.34]
[1727509454195,2.34750069,2684.4,2684.3,1.34]
[1727509454892,0.3953,2684.4,2684.3,1.34]
[1727509455097,0.3953,2684.4,2684.2,0.37245]
[1727509455299,1.95228578,2684.3,2684.2,1.71245]
[1727509455511,1.95228578,2684.3,2684.2,1.34]
[1727509455807,1.95228578,2684.3,2684.1,0.4012]
[1727509456002,1.95228578,2684.3,2684.0,3.58027]
[1727509456003,0.3717,2684.2,2684.0,3.58027]
[1727509456200,1.95242336,2684.1,2684.0,3.58027]
[1727509457304,2.8148789,2684.2,2684.0,3.58027]
[1727509457610,1.95245344,2684.1,2684.0,3.58027]
[1727509458204,2.8148789,2684.2,2684.0,3.58027]
[1727509458403,1.95242518,2684.1,2684.0,3.58027]
[1727509461014,2.4431789,2684.3,2684.0,3.58027]
[1727509461015,1.95242518,2684.2,2684.1,0.37247]
[1727509461205,1.95242518,2684.2,2684.1,1.71247]
[1727509465709,1.95242518,2684.3,2684.2,0.37245]
[1727509465916,1.95242518,2684.4,2684.3,0.37244]
[1727509466117,1.95222465,2684.4,2684.3,0.37244]
[1727509466303,1.95222465,2684.4,2684.3,0.75784]
[1727509466511,2.4431789,2684.5,2684.3,0.75784]
[1727509467315,1.95226193,2684.4,2684.3,0.75784]
[1727509467514,2.4431789,2684.5,2684.3,0.75784]
[1727509467713,2.4431789,2684.5,2684.3,2.09784]
[1727509467917,1.95229559,2684.4,2684.3,2.09784]
[1727509468212,2.8155889,2684.5,2684.3,2.09784]
[1727509468413,2.8155889,2684.5,2684.3,1.7254]
[1727509469322,2.4431789,2684.4,2684.3,0.3854]
[1727509469620,2.8155989,2684.5,2684.3,0.3854]
[1727509470410,2.4431789,2684.4,2684.3,0.3854]
[1727509470813,5.6509789,2684.4,2684.0,2.61948]
[1727509471015,5.6509789,2684.4,2684.0,2.6445]
[1727509471016,1.46437852,2684.1,2684.0,2.6445]
[1727509471314,1.46437852,2684.1,2684.0,7.10789915]
[1727509471513,1.46437852,2684.1,2684.0,3.01698]
[1727509471514,1.46440339,2684.1,2684.0,3.01698]
[1727509471719,1.46441177,2684.1,2684.0,7.08595084]
[1727509471917,1.46440882,2684.1,2684.0,7.08595084]
[1727509472117,1.9525047,2684.2,2684.0,7.08595084]
[1727509472311,1.46442115,2684.1,2684.0,6.71347084]
[1727509472514,1.9525047,2684.2,2684.0,7.08595084]
[1727509473720,1.4644516,2684.1,2684.0,7.08595084]
[1727509473928,1.9525047,2684.2,2684.0,7.08595084]
[1727509474118,1.46445238,2684.1,2684.0,7.08595084]
[1727509474917,1.9525047,2684.2,2684.1,0.37247]
[1727509475210,1.9525047,2684.2,2684.1,1.71247]
[1727509476124,2.7384047,2684.3,2684.1,1.71247]
[1727509476624,1.9525047,2684.2,2684.1,1.71247]
[1727509476929,1.9525047,2684.2,2684.1,1.34]
[1727509479021,3.2290789,2684.3,2684.1,1.34]
[1727509479325,1.95274776,2684.2,2684.1,1.34]
[1727509479819,1.95274776,2684.2,2684.1,5.4630169]
[1727509483223,1.95274776,2684.2,2684.1,5.8354869]
[1727509483819,1.95274776,2684.3,2684.1,5.8354869]
[1727509484924,1.95274776,2684.2,2684.1,5.8354869]
[1727509486322,1.95274776,2684.3,2684.1,5.8354869]
[1727509486725,1.95274776,2684.2,2684.1,5.8354869]
[1727509488532,0.97662436,2684.2,2684.1,15.39748556]
[1727509488727,1.46493654,2684.4,2684.2,0.37245]
[1727509488728,0.97650696,2684.3,2684.2,0.37245]
[1727509488928,1.46493654,2684.4,2684.3,0.37244]
[1727509489233,1.95274776,2684.5,2684.4,0.37242]
[1727509489424,1.95274776,2684.5,2684.4,1.71242]
[1727509489624,1.95274776,2684.5,2684.4,5.9344863]
[1727509489825,1.95274776,2684.5,2684.4,5.5620663]
[1727509490633,3.1985889,2684.6,2684.4,4.2220663]
[1727509490836,2.4431789,2684.5,2684.4,4.2220663]
[1727509492231,2.8155889,2684.5,2684.4,4.2220663]
[1727509493536,2.4431789,2684.5,2684.4,4.2220663]
[1727509496526,2.44221728,2684.5,2684.4,4.2220663]
[1727509499930,2.44221728,2684.5,2684.4,5.9344863]
[1727509500445,6.40541728,2684.6,2684.4,5.5620663]
[1727509500641,2.44221728,2684.5,2684.4,5.5620663]
[1727509500939,2.44221728,2684.5,2684.0,0.974159]
[1727509500940,7.09804728,2684.5,2684.0,0.974159]
[1727509501144,2.44233225,2684.1,2683.8,0.4027]
[1727509501335,1.95397754,2683.9,2683.8,0.4027]
[1727509501650,2.44233225,2684.1,2684.0,0.37248]
[1727509501950,1.95374052,2684.1,2684.0,4.29332465]
[1727509502139,1.95374052,2684.2,2684.1,0.37247]
[1727509502345,1.95374052,2684.2,2684.1,1.71247]
[1727509502643,1.95374052,2684.2,2684.1,5.63331465]
[1727509504559,1.95374052,2684.2,2684.1,6.03001465]
[1727509504945,1.95393739,2684.2,2684.1,6.03001465]
[1727509505247,1.95393739,2684.2,2684.1,5.65754465]
[1727509505438,0.3767,2684.2,2684.1,5.65754465]
[1727509505640,2.81903225,2684.2,2684.1,5.65754465]
[1727509506847,2.81903225,2684.2,2684.1,3.92084465]
[1727509507041,2.81955486,2684.2,2684.1,3.92084465]
[1727509507244,3.19197581,2684.2,2684.1,3.92084465]
[1727509507445,4.1023,2684.2,2683.7,0.974159]
[1727509507643,4.1023,2684.2,2683.7,2.61852]
[1727509507644,1.95439297,2683.8,2683.7,2.61852]
[1727509507851,1.95439297,2683.8,2683.7,6.8046326]
[1727509508245,1.95439297,2683.8,2683.7,6.4321126]
[1727509508750,2.44299121,2683.8,2683.7,5.5261126]
[1727509510953,2.81550121,2683.8,2683.7,4.1861126]
[1727509511644,0.37251,2683.8,2683.7,4.1861126]
[1727509512056,2.81550121,2683.8,2683.7,4.1861126]
[1727509512350,0.37251,2683.8,2683.7,4.1861126]
[1727509513554,2.3244249,2683.8,2683.7,4.1861126]
[1727509513757,0.37251,2683.8,2683.7,4.1861126]
[1727509513943,2.32443272,2683.8,2683.7,4.1861126]
[1727509514146,0.37251,2683.8,2683.7,4.1861126]
[1727509514446,2.32415719,2683.8,2683.7,4.1861126]
[1727509514749,0.37251,2683.8,2683.7,4.1861126]
[1727509515148,3.62959121,2683.9,2683.7,4.5586326]
[1727509515452,1.95144542,2683.8,2683.7,4.5586326]
[1727509516156,1.95144542,2683.8,2683.7,4.1861126]
[1727509516559,1.95144542,2683.8,2683.7,4.5586326]
[1727509517149,1.95144542,2683.8,2683.7,4.1861126]
[1727509517857,3.51054542,2683.9,2683.7,4.1861126]
[1727509518057,5.15924542,2684.0,2683.9,0.37249]
[1727509518254,3.2078,2684.0,2683.9,0.37249]
[1727509518959,5.15924542,2684.0,2683.9,0.37249]
[1727509521766,1.95144542,2684.1,2684.0,0.37248]
[1727509521954,1.95144542,2684.1,2684.0,1.71248]
[1727509522361,0.9752472,2684.1,2684.0,5.96284278]
[1727509522563,1.4628727,2684.1,2684.0,6.86884278]
[1727509522769,1.95144542,2684.3,2684.0,6.49636278]
[1727509522953,1.95144542,2684.3,2684.2,0.37245]
[1727509524558,2.32388542,2684.3,2684.1,0.37246]
[1727509524752,2.32388542,2684.3,2684.2,0.8071]
[1727509524953,2.32388542,2684.3,2684.2,6.10603118]
[1727509529565,1.95144542,2684.3,2684.2,6.10603118]
[1727509529767,3.22949121,2684.5,2684.3,0.37244]
[1727509529768,1.95144542,2684.4,2684.3,0.37244]
[1727509530066,1.95144542,2684.4,2684.3,5.7695925]
[1727509530366,0.97511847,2684.5,2684.4,0.37242]
[1727509530769,0.97511847,2684.5,2684.4,8.14670387]
[1727509532669,0.97511847,2684.5,2684.4,4.42190387]
[1727509532859,0.97511847,2684.5,2684.4,8.14670387]